Cogmind - Beta 16 @@@ ROGUE MODE // 2025.11.20 @ 12:01:08 Player: oshi0ne1 Result: Destroyed by D-53 Grenadier with Mini Grenade Launcher Performance ------------- Evolutions (0) 0 Regions Visited (4) 800 Robots Destroyed (3) 15 Value Destroyed (88) 88 Prototype IDs (23) 460 Alien Tech Used (0) 0 Bonus (300) 300 TOTAL SCORE: 1663 Bonus ------- Aligned with FarCom 300 Cogmind --------- Core Integrity 0/250 Matter 262/300 Energy 65/100 System Corruption 0% Temperature Cool (0) Movement Walking (120) Location -9/Mines Parts ------- > --- POWER (1) -------- (None) > --- PROPULSION (2) --- Aluminum Leg Aluminum Leg > --- UTILITY (2) ------ (None) > --- WEAPON (2) ------- (None) > --- INVENTORY (5) ---- AWS/Autocannon Peak State ------------ > --- POWER ------------ Light Ion Engine > --- PROPULSION ------- Light Treads Light Treads > --- UTILITY ---------- High-capacity Storage Unit > --- WEAPON ----------- Assault Rifle Light Assault Rifle > --- INVENTORY -------- Light Ion Engine Aluminum Leg Aluminum Leg Medium Laser Makeshift Shrapnel Gun AWS/Autocannon [Rating: 9] Favorites ----------- Power Light Ion Engine Engine Light Ion Engine Propulsion Light Treads Treads Light Treads Leg Aluminum Leg Utility High-capacity Storage Unit Storage High-capacity Storage Unit Weapon Light Assault Rifle Ballistic Gun Light Assault Rifle Build | -11 -10 -10 -10 -9 ------- Run | Yrd Mat Min Exi Min Slots Evolved . | . . . . . Power . | . . . . . Propulsion . | . . . . . Utility . | . . . . . Weapon . | . . . . . Parts Attached 9 | 6 1 . . 2 Power 1 | 1 . . . . Engine 1 | 1 . . . . Core . | . . . . . Reactor . | . . . . . Propulsion 4 | 2 . . . 2 Treads 2 | 2 . . . . Leg 2 | . . . . 2 Wheel . | . . . . . Hover . | . . . . . Flight . | . . . . . Utility 2 | 1 1 . . . Device . | . . . . . Storage 2 | 1 1 . . . Processor . | . . . . . Hackware . | . . . . . Protection . | . . . . . Artifact . | . . . . . Weapon 2 | 2 . . . . Energy Gun . | . . . . . Energy Cannon . | . . . . . Ballistic Gun 2 | 2 . . . . Ballistic Cannon . | . . . . . Launcher . | . . . . . Special Weapon . | . . . . . Impact Weapon . | . . . . . Slashing Weapon . | . . . . . Piercing Weapon . | . . . . . Special Melee Weapon . | . . . . . Unidentified Prototypes . | . . . . . Parts Lost 5 | . . . . 5 Power 1 | . . . . 1 Propulsion 2 | . . . . 2 Utility . | . . . . . Weapon 2 | . . . . 2 Highest Loss Streak 5 | . . . . 5 To Critical Strikes . | . . . . . Average Backups 5 | 2 4 4 5 5 Power . | . 1 1 1 . Propulsion 1 | . 2 2 2 2 Utility . | . . . . . Weapon 2 | . 1 1 2 2 Tool/Special . | . . . . . Unused Backups 5 | 1 . . . 4 Power 1 | . . . . 1 Propulsion 1 | 1 . . . . Utility . | . . . . . Weapon 3 | . . . . 3 Tool/Special . | . . . . . Average Slot Usage (%) 84 | . 85 85 85 83 Engine 13 | . 14 14 14 13 Treads 27 | . 28 28 28 27 Storage 13 | . 14 14 14 13 Ballistic Gun 27 | . 28 28 28 27 Peak Build Rating 9 | 6 7 6 9 9 Average Rating 7 | 4 6 6 7 8 On Entrance 5 | . 6 6 6 9 Avg Prop Armor Cover (%) . | . . . . . Naked Turns 1 | . . . . 1 Heaviest Build 46 | 11 46 46 46 46 Greatest Support 40 | 40 40 40 40 40 Greatest Overweight (x) 1 | . 1 1 1 1 Average Overweight (x) . | . . 1 1 . Largest Inventory Capacity 20 | 8 20 20 20 20 Average Capacity 18 | 7 17 20 20 19 Most Carried 8 | 4 4 5 8 8 Average Carried 6 | 2 4 4 6 7 Final Capacity 20 | 8 20 20 20 5 Final Carried 8 | 4 4 5 8 3 Class Distribution -------------------- 100% | Mutant Dominant Class ---------------- Mutant | -10/Materials Mutant | -10/Mines Mutant | -10/Exiles Mutant | -9/Mines Resources | -11 -10 -10 -10 -9 ----------- Run | Yrd Mat Min Exi Min Matter Collected 276 | 210 . . . 66 Remotely . | . . . . . Salvage Created 111 | . . . . 111 Parts 6 | . . . . 6 Haulers Intercepted . | . . . . . Recyclers Shooed 1 | . . . . 1 Parts Field Recycled . | . . . . . Retrieved Matter . | . . . . . Parts Self-Destructed . | . . . . . Prevented . | . . . . . Parts Restored . | . . . . . Kills | -11 -10 -10 -10 -9 ------- Run | Yrd Mat Min Exi Min Combat Hostiles Destroyed 2 | . . . . 2 Guns 2 | . . . . 2 Classes Destroyed 2 | . . . . 2 Tunneler 1 | . . . . 1 Grunt 2 | . . . . 2 Best Kill Streak 2 | . . . . 2 Combat Bots Only 2 | . . . . 2 Max Kills in Single Turn 1 | . . . . 1 Gunslinging . | . . . . . Exploded . | . . . . . Melee . | . . . . . Uniques/NPCs Destroyed . | . . . . . Combat | -11 -10 -10 -10 -9 -------- Run | Yrd Mat Min Exi Min Hostile Shots Fired 32 | . . . . 32 Missed 3 | . . . . 3 Hits 29 | . . . . 29 Projectile 29 | . . . . 29 AOE 22 | . . . . 22 Damage Taken 900 | . . . . 900 Core 265 | . . . . 265 Absorbed by Shields . | . . . . . Core Remaining (%) 100 | 100 . . . . Volleys Fired 13 | . . 1 . 12 Largest 2 | . . 2 . 2 Hottest 40 | . . 40 . 40 Shots Fired 26 | . . 2 . 24 Gun 26 | . . 2 . 24 Cannon . | . . . . . Launcher . | . . . . . Special . | . . . . . Kinetic 26 | . . 2 . 24 Thermal . | . . . . . Explosive . | . . . . . Electromagnetic . | . . . . . Robot Hit Streak 7 | . . 1 . 7 Robot Miss Streak 2 | . . 1 . 2 Penetration Max . | . . . . . Secondary Targets . | . . . . . Shots Hit Robots 21 | . . 1 . 20 Core Hits 11 | . . 1 . 10 Critical Kills . | . . . . . Critical Parts Destroyed . | . . . . . Critical Strikes . | . . . . . Melee Attacks . | . . . . . Impact . | . . . . . Slashing . | . . . . . Piercing . | . . . . . Sneak Attacks . | . . . . . Combat Hostiles . | . . . . . Follow-up Attacks . | . . . . . Damage Inflicted 222 | . . 7 . 215 Guns 221 | . . 7 . 214 Cannons . | . . . . . Explosions . | . . . . . Melee . | . . . . . Ramming 1 | . . . . 1 Kinetic 221 | . . 7 . 214 Thermal . | . . . . . Explosive . | . . . . . Electromagnetic . | . . . . . Impact . | . . . . . Slashing . | . . . . . Piercing . | . . . . . Highest Corruption . | . . . . . Average Corruption . | . . . . . Corruption Purged . | . . . . . Corruption Blocked . | . . . . . Overload Shots . | . . . . . Overflow Damage . | . . . . . Projectiles . | . . . . . Explosions . | . . . . . Melee . | . . . . . Knockbacks . | . . . . . Impact . | . . . . . Kinetic . | . . . . . Secondary . | . . . . . Self-Inflicted Damage . | . . . . . Shots . | . . . . . Rammed 1 | . . . . 1 Targets Rammed 1 | . . . . 1 Kicked . | . . . . . Crushed . | . . . . . Highest Temperature 25 | . . . . 25 Average Temperature 12 | . . . . 12 Received Heat Transfer 51 | . . . . 51 Siege Activations . | . . . . . Martial Activations . | . . . . . Shielding Activations . | . . . . . Robots Disrupted . | . . . . . Combat Hostiles . | . . . . . Robots Corrupted . | . . . . . Combat Hostiles . | . . . . . Parts Fried . | . . . . . Impact Corruptions . | . . . . . Robots Melted . | . . . . . Combat Hostiles . | . . . . . Parts Melted . | . . . . . Heat Transferred . | . . . . . Parts Sabotaged . | . . . . . Parts Stolen . | . . . . . Parts Stripped . | . . . . . Power Chain Reactions . | . . . . . Alert | -11 -10 -10 -10 -9 ------- Run | Yrd Mat Min Exi Min Maximum Alert Level . | . . . . . Low Security (%) 100 | 100 100 100 . 100 Level 1 . | . . . . . Level 2 . | . . . . . Level 3 . | . . . . . Level 4 . | . . . . . Level 5 . | . . . . . High Security . | . . . . . Max Security . | . . . . . Peak Influence 50 | . . . . 50 Initial . | . . . . . Average 3 | . . . . 5 Influence Increases 55 | . . . . 55 Destroy 0b10 Robot/C 40 | . . . . 40 Destroy 0b10 Robot/NC 5 | . . . . 5 Destroy Leader 10 | . . . . 10 Influence Decreases 55 | . . . . 55 Time Decay 55 | . . . . 55 Squads Dispatched 1 | . 1 . . . Investigation 1 | . 1 . . . Extermination . | . . . . . Reinforcement . | . . . . . Assault . | . . . . . Garrison . | . . . . . Intercept . | . . . . . Searches Triggered . | . . . . . Construction Impeded . | . . . . . Haulers Reinforced . | . . . . . Active Scanning Responses . | . . . . . Cargo Convoy Interrupts . | . . . . . Stealth | -11 -10 -10 -10 -9 --------- Run | Yrd Mat Min Exi Min Distress Signals 1 | . 1 . . . Communications Jammed . | . . . . . Distress Signals . | . . . . . Times Spotted 5 | . . . . 5 Peak Tracking Total 2 | . . . . 2 Tactical Retreats . | . . . . . Traps | -11 -10 -10 -10 -9 ------- Run | Yrd Mat Min Exi Min Traps Triggered 1 | . 1 . . . Indirectly . | . . . . . Trap Hack Attempts . | . . . . . Triggered . | . . . . . Disarmed . | . . . . . Reprogrammed . | . . . . . Reused . | . . . . . Traps Extracted . | . . . . . Installed . | . . . . . Triggered . | . . . . . Machines | -11 -10 -10 -10 -9 ---------- Run | Yrd Mat Min Exi Min Machines Disabled . | . . . . . Max in Single Turn . | . . . . . Machines Repaired . | . . . . . Machines Dismantled . | . . . . . Machines Sabotaged . | . . . . . Overloaded Fab Kills . | . . . . . Hacking | -11 -10 -10 -10 -9 --------- Run | Yrd Mat Min Exi Min Machines Accessed 1 | . . . 1 . Terminals . | . . . . . Fabricators . | . . . . . Repair Stations . | . . . . . Recycling Units . | . . . . . Scanalyzers . | . . . . . Garrison Access . | . . . . . Total Hacks 1 | . . . 1 . Successful 1 | . . . 1 . Failed . | . . . . . Catastrophic . | . . . . . Database Lockouts . | . . . . . Manual 1 | . . . 1 . Terminals . | . . . . . Fabricators . | . . . . . Repair Stations . | . . . . . Recycling Units . | . . . . . Scanalyzers . | . . . . . Garrison Access . | . . . . . Terminal Hacks 1 | . . . 1 . Proto ID Catalog 1 | . . . 1 . Fabricator Hacks . | . . . . . Repair Station Hacks . | . . . . . Recycling Unit Hacks . | . . . . . Scanalyzer . | . . . . . Garrison Access Hacks . | . . . . . Unauthorized Hacks . | . . . . . Terminals . | . . . . . Fabricators . | . . . . . Repair Stations . | . . . . . Recycling Units . | . . . . . Scanalyzers . | . . . . . Garrison Access . | . . . . . Data Cores Recovered . | . . . . . Used . | . . . . . Hacking Detections . | . . . . . Full Trace Events . | . . . . . Feedback Events . | . . . . . Feedback Blocked . | . . . . . Robot Schematics Acquired . | . . . . . Robots Built . | . . . . . Authchips . | . . . . . Time . | . . . . . Total Robot Build Rating . | . . . . . Part Schematics Acquired . | . . . . . Parts Built . | . . . . . Authchips . | . . . . . Time . | . . . . . Total Part Build Rating . | . . . . . Part Studies Acquired . | . . . . . Parts Repaired . | . . . . . Time . | . . . . . Parts Recycled . | . . . . . Recycled Matter . | . . . . . Retrieved Matter . | . . . . . Retrieved Components . | . . . . . Parts Scanalyzed . | . . . . . Part Schematics Acquired . | . . . . . Parts Damaged . | . . . . . Bothacking | -11 -10 -10 -10 -9 ------------ Run | Yrd Mat Min Exi Min Used RIF Installer . | . . . . . Robots Hacked . | . . . . . Non-combat . | . . . . . Combat . | . . . . . Robot Hacks Applied . | . . . . . Relay Couplers Released . | . . . . . Fabnet Peak Effective % . | . . . . . Robots Rewired . | . . . . . Allies Hacked . | . . . . . Hacks Repelled . | . . . . . Allies | -11 -10 -10 -10 -9 -------- Run | Yrd Mat Min Exi Min Total Allies . | . . . . . Largest Group . | . . . . . Highest-Rated Group . | . . . . . Highest-Rated Ally . | . . . . . Total Orders . | . . . . . Ally Attacks . | . . . . . Total Damage . | . . . . . Kills . | . . . . . Allies Corrupted . | . . . . . Allies Melted . | . . . . . Intel | -11 -10 -10 -10 -9 ------- Run | Yrd Mat Min Exi Min Active Infowar (turns) . | . . . . . Robot Analysis Total . | . . . . . Derelict Logs Recovered . | . . . . . Drone Launches . | . . . . . Drone Recoveries . | . . . . . Exploration | -11 -10 -10 -10 -9 ------------- Run | Yrd Mat Min Exi Min Turns Passed 1424 | 94 162 162 493 513 Spaces Moved 583 | 51 75 65 206 186 Core 2 | 1 . . . 1 Treads 581 | 50 75 65 206 185 Legs . | . . . . . Wheels . | . . . . . Hover . | . . . . . Flight . | . . . . . Fastest Speed 50 | 50 160 240 240 50 Average Speed 228 | 157 216 240 240 236 Slowest Speed 240 | 160 240 240 240 240 Overloaded Moves . | . . . . . Propulsion Burnouts . | . . . . . Robots Hopped . | . . . . . Potential Cave-ins . | . . . . . Cave-ins Triggered . | . . . . . Exploration Rate (%) 26 | 5 13 32 41 39 Regions Visited 4 Branch Regions 3 Pre-discovered Areas . | . . . . . Known Exits Taken . | . . . . . Unknown Exits Taken 4 | 1 1 1 1 . Scrap Searched . | . . . . . Spaces Dug . | . . . . . Terrain Destroyed . | . . . . . Melee . | . . . . . Projectile . | . . . . . AOE . | . . . . . Terrain Rammed . | . . . . . Walls Destroyed . | . . . . . Machines Disabled . | . . . . . Actions | -11 -10 -10 -10 -9 --------- Run | Yrd Mat Min Exi Min Total 653 | 63 76 70 206 238 Wait 37 | . . 4 . 33 Move 579 | 50 74 64 205 186 Hop . | . . . . . Pick Up 8 | 6 . 1 1 . Fast Attach 6 | 5 1 . . . Attach 3 | 1 . . . 2 Detach . | . . . . . Swap . | . . . . . Drop 6 | 1 1 . . 4 Fire 13 | . . 1 . 12 Melee . | . . . . . Ram . | . . . . . Kick . | . . . . . Crush 1 | . . . . 1 Escape Stasis . | . . . . . Rewire . | . . . . . Trap . | . . . . . Miscellaneous . | . . . . . Route ------- -11/Scrapyard -10/Materials -10/Mines -10/Exiles -9/Mines (discovered 1 exit: [*Mat]) History --------- Turn | Location | Event 54 | -11/Scrapyard | Discovered new exit (range 15) 95 | -11/Scrapyard | Entered Materials 224 | -10/Materials | Met 8R-AWN 224 | -10/Materials | Discovered new exit (range 15) 257 | -10/Materials | Entered Mines 260 | -10/Mines | Followed 8R-AWN into the Mines 305 | -10/Mines | Build established: Mutant 366 | -10/Mines | A weapon hastily lodged in a ceiling crevice suddenly fell to the ground 409 | -10/Mines | Discovered new exit (range 5) 419 | -10/Mines | Entered Exiles 477 | -10/Exiles | Welcomed by 8R-AWN 518 | -10/Exiles | Met EX-HEX 583 | -10/Exiles | Met EX-BIN 611 | -10/Exiles | Aligned with FarCom system 614 | -10/Exiles | Given EX-Vault access code 671 | -10/Exiles | Opened EX-Vault 681 | -10/Exiles | Found AWS/Autocannon 735 | -10/Exiles | Warned to stay clear of 0b10 Research branches 833 | -10/Exiles | Learned about 8R-AWN's background 886 | -10/Exiles | Discovered new exit (range 14) 912 | -10/Exiles | Left Exiles lab with AWS/Autocannon 912 | -10/Exiles | Entered Mines 1059 | -9/Mines | Discovered new exit (range 7) 1387 | -9/Mines | Assembled infested the area 1414 | -9/Mines | Core integrity fell below 50% 1424 | -9/Mines | Core integrity fell below 20% 1425 | -9/Mines | Destroyed by D-53 Grenadier with Mini Grenade Launcher Last Messages --------------- D-53 Grenadier unfolds itself. Dropped Mak. Shrapnel Gun. Dropped Med. Laser. The unstable cave ceiling collapses. Dropped Lgt. Ion Engine. Dropped Hcp. Storage Unit. The unstable cave ceiling collapses. K-01 Serf collects debris. Lgt. Treads destroyed. Lgt. Assault Rifle destroyed. K-01 Serf collects debris. Assault Rifle destroyed. Lgt. Ion Engine destroyed. R-06 Scavenger destroyed. K-01 Serf collects debris. The unstable cave ceiling collapses. Lgt. Treads destroyed. R-06 Scavenger destroyed. The unstable cave ceiling collapses. K-01 Serf destroyed. Map ----- +----------------------------------------------------+ | ???????????????#####??????????????????????????? | | ???????????##### ##?????????????????????????? | | ??????????## ##????????????????????????? | | ??????????# #?############???????????? | | ??????????# #?# #???????????? | | ???????????# #??# """ """ #???????????? | | ????????????# #### """ """ #???????????? | | ???????????## """ """ #### #?????? | | ??????????## """ """ #?????? | | ?????????## ##### #?????? | | ?????????# #???# #???????????? | | ?????????# ##??### #### ##???????????? | | ????????## #????# #??# #????????????? | | ?????#### #????# #### #????????????? | | ?????# ##????# ##???????????? | | ?????# ##????###### ##??????????? | | ?????### ##????????# #??????????? | | ???????## ## #???????## ##?????????? | | ????????# #### #???##### #?????????? | | ????????## #### #?### ##????????? | | ?????????# ## ### ####?????? | | ?????????## ##????? | | ?????????## ## #????? | | ?????##### ### # #????? | | ????## =% # #???? | | ????# %*%d@ #?# #???? | | ????# #####*! d ! #???# ??? | | ????## ##???# #????#####?? | | ?????### # #???# #?????????? | | ???????# # #???# #?????????? | | ????#### # #???## #### ##?????????? | | ???## # #????## #?## ##??????????? | | ???# ##????## #??### ##???????????? | | ???# #?????####????## ##????????????? | | ???## #??????????????####?????????????? | | ????## ######??????????????????????????? | | ?????# < #??????????????????????????? | | ?????## #??????????????????????????? | | ??????####### #### #??????????????????????????? | | ????????##### #??? #??????????????????????????? | | ????????# #????#??????????????????????????? | | ????????# ### #???????????????????????????????? | | ???????## ### ####????????????????????????????? | | ???????# #????????????????????????????? | | ???##### """ #????????????????????????????? | | ???# """ #????????????????????????????? | | ???# ### """ #????????????????????????????? | | ???# #?# #????????????????????????????? | | ???# ### #????????????????????????????? | | ??## ###########????????????????????????????? | +----------------------------------------------------+ Best States ------------- Heat Dissipation 25 Energy Generation 10 Energy Capacity 125 Matter Stores 277 Matter Capacity 300 Sight Range 16 Terrain Scan Density 10 Evasion (%) 40 Recoil Reduction 2 Item Schematics ----------------- None Robot Schematics ------------------ None Fabricated ------------ Nothing Repaired ---------- Nothing Studied --------- None Alien Tech Used ----------------- None Achievements -------------- None Challenges ------------ None Game ------ Seed TrackerRemoteDetonator Manual? 0 Play Time 00:07:18 Cumulative 23.5 hours Start 2025.11.20 @ 11:40:08 End 2025.11.20 @ 12:01:08 Sessions 1 Manual Loads 0 Difficulty Rogue Special Mode None Game No. 49 Rogue 15 Adventurer 34 Explorer 0 Win Type - Total 0 Types 0/0/0/0/0/0/0/0/0/0 Lore% 14 Gallery% 25 Achievement% 20 Wizard Run 0 Options --------- Layout 2 ASCII 0 Keyboard 0 Movement Mouse Keybinds 0 Fullscreen 1 Font 24/Smallcaps Map View 50x44 Zoom Use 0% Tactical HUD 0 Map Filters NONE Filters NONE Steam 1 RUN: 17a11616-7c01-426d-b209-1ce1d5dff809